Department family,Entity,Date,Expense type,Expense area,Supplier,Transaction number,Amount
Department of Health,Leicestershire Partnership NHS Trust,01/04/22,Nurse - Band 6 -Agency,AMH - Central Access Point,HCL NURSING,HNSI0000992,3232.65
Department of Health,Leicestershire Partnership NHS Trust,01/04/22,Nurse - Band 6 -Agency,Adult County Charnwood CMHT - Loughborough Base,HCL NURSING,HNSI0000992,2418.12
Department of Health,Leicestershire Partnership NHS Trust,01/04/22,Nurse - Band 6 -Agency,Adult County West Leicestershire CMHT,HCL NURSING,HNSI0000992,1069.97
Department of Health,Leicestershire Partnership NHS Trust,01/04/22,NURSE - BAND 2 - AGENCY,Agnes Unit Management,HCL NURSING,HNSI0000992,26624.67
Department of Health,Leicestershire Partnership NHS Trust,01/04/22,NURSE - BAND 5 - AGENCY,Agnes Unit Management,HCL NURSING,HNSI0000992,20634.71
Department of Health,Leicestershire Partnership NHS Trust,01/04/22,NURSE - BAND 2 - AGENCY,Ashby Ward (Bradgate Unit),HCL NURSING,HNSI0000992,1342.25
Department of Health,Leicestershire Partnership NHS Trust,01/04/22,NURSE - BAND 5 - AGENCY,Ashby Ward (Bradgate Unit),HCL NURSING,HNSI0000992,4212.64
Department of Health,Leicestershire Partnership NHS Trust,01/04/22,NURSE - BAND 2 - AGENCY,Aston Ward (Bradgate Unit),HCL NURSING,HNSI0000992,9401.85
Department of Health,Leicestershire Partnership NHS Trust,01/04/22,NURSE - BAND 3 - AGENCY,Aston Ward (Bradgate Unit),HCL NURSING,HNSI0000992,181.93
Department of Health,Leicestershire Partnership NHS Trust,01/04/22,NURSE - BAND 5 - AGENCY,Aston Ward (Bradgate Unit),HCL NURSING,HNSI0000992,18587.00
Department of Health,Leicestershire Partnership NHS Trust,01/04/22,NURSE - BAND 2 - AGENCY,Beaumont Ward - Bradgate Unit,HCL NURSING,HNSI0000992,6357.42
Department of Health,Leicestershire Partnership NHS Trust,01/04/22,NURSE - BAND 5 - AGENCY,Beaumont Ward - Bradgate Unit,HCL NURSING,HNSI0000992,10666.17
Department of Health,Leicestershire Partnership NHS Trust,01/04/22,NURSE - BAND 2 - AGENCY,Belvoir Psychiatric Intensive Care Unit,HCL NURSING,HNSI0000992,3970.71
Department of Health,Leicestershire Partnership NHS Trust,01/04/22,NURSE - BAND 5 - AGENCY,Belvoir Psychiatric Intensive Care Unit,HCL NURSING,HNSI0000992,4258.48
Department of Health,Leicestershire Partnership NHS Trust,01/04/22,NURSE - BAND 2 - AGENCY,Cedar (Willows),HCL NURSING,HNSI0000992,3289.48
Department of Health,Leicestershire Partnership NHS Trust,01/04/22,Nurse - Band 6 -Agency,City West CMHT MHSOP,HCL NURSING,HNSI0000992,1046.25
Department of Health,Leicestershire Partnership NHS Trust,01/04/22,NURSE - BAND 2 - AGENCY,Coleman Ward,HCL NURSING,HNSI0000992,15648.69
Department of Health,Leicestershire Partnership NHS Trust,01/04/22,NURSE - BAND 5 - AGENCY,Coleman Ward,HCL NURSING,HNSI0000992,3442.45
Department of Health,Leicestershire Partnership NHS Trust,01/04/22,NURSE - BAND 5 - AGENCY,Crisis Resolution,HCL NURSING,HNSI0000992,6185.78
Department of Health,Leicestershire Partnership NHS Trust,01/04/22,NURSE - BAND 2 - AGENCY,Griffin Ward (HPC),HCL NURSING,HNSI0000992,12155.95
Department of Health,Leicestershire Partnership NHS Trust,01/04/22,NURSE - BAND 5 - AGENCY,Griffin Ward (HPC),HCL NURSING,HNSI0000992,5430.11
Department of Health,Leicestershire Partnership NHS Trust,01/04/22,NURSE - BAND 2 - AGENCY,Heather Ward,HCL NURSING,HNSI0000992,475.33
Department of Health,Leicestershire Partnership NHS Trust,01/04/22,NURSE - BAND 5 - AGENCY,Heather Ward,HCL NURSING,HNSI0000992,5186.57
Department of Health,Leicestershire Partnership NHS Trust,01/04/22,NURSE - BAND 2 - AGENCY,Kirby Ward,HCL NURSING,HNSI0000992,4084.17
Department of Health,Leicestershire Partnership NHS Trust,01/04/22,NURSE - BAND 5 - AGENCY,Kirby Ward,HCL NURSING,HNSI0000992,1370.30
Department of Health,Leicestershire Partnership NHS Trust,01/04/22,NURSE - BAND 2 - AGENCY,Maple Ward,HCL NURSING,HNSI0000992,1693.94
Department of Health,Leicestershire Partnership NHS Trust,01/04/22,NURSE - BAND 2 - AGENCY,Mill Lodge,HCL NURSING,HNSI0000992,1407.17
Department of Health,Leicestershire Partnership NHS Trust,01/04/22,NURSE - BAND 5 - AGENCY,Mill Lodge,HCL NURSING,HNSI0000992,6765.37
Department of Health,Leicestershire Partnership NHS Trust,01/04/22,NURSE - BAND 2 - AGENCY,Phoenix Ward (HPC),HCL NURSING,HNSI0000992,3800.28
Department of Health,Leicestershire Partnership NHS Trust,01/04/22,NURSE - BAND 5 - AGENCY,Phoenix Ward (HPC),HCL NURSING,HNSI0000992,2313.01
Department of Health,Leicestershire Partnership NHS Trust,01/04/22,NURSE - BAND 2 - AGENCY,Place Of Safety Assessment Unit,HCL NURSING,HNSI0000992,1250.79
Department of Health,Leicestershire Partnership NHS Trust,01/04/22,NURSE - BAND 5 - AGENCY,Place Of Safety Assessment Unit,HCL NURSING,HNSI0000992,5114.06
Department of Health,Leicestershire Partnership NHS Trust,01/04/22,NURSE - BAND 2 - AGENCY,Stewart House,HCL NURSING,HNSI0000992,1328.18
Department of Health,Leicestershire Partnership NHS Trust,01/04/22,NURSE - BAND 5 - AGENCY,Stewart House,HCL NURSING,HNSI0000992,6214.97
Department of Health,Leicestershire Partnership NHS Trust,01/04/22,NURSE - BAND 2 - AGENCY,Sycamore (Willows),HCL NURSING,HNSI0000992,3831.96
Department of Health,Leicestershire Partnership NHS Trust,01/04/22,NURSE - BAND 5 - AGENCY,Sycamore (Willows),HCL NURSING,HNSI0000992,7848.50
Department of Health,Leicestershire Partnership NHS Trust,01/04/22,NURSE - BAND 2 - AGENCY,Thornton Ward - Bradgate Unit,HCL NURSING,HNSI0000992,955.75
Department of Health,Leicestershire Partnership NHS Trust,01/04/22,NURSE - BAND 5 - AGENCY,Thornton Ward - Bradgate Unit,HCL NURSING,HNSI0000992,1920.47
Department of Health,Leicestershire Partnership NHS Trust,01/04/22,NURSE - BAND 2 - AGENCY,Urgent Care Hub,HCL NURSING,HNSI0000992,688.07
Department of Health,Leicestershire Partnership NHS Trust,01/04/22,NURSE - BAND 2 - AGENCY,Watermead Ward (Bradgate Unit),HCL NURSING,HNSI0000992,5228.57
Department of Health,Leicestershire Partnership NHS Trust,01/04/22,NURSE - BAND 5 - AGENCY,Watermead Ward (Bradgate Unit),HCL NURSING,HNSI0000992,9634.39
Department of Health,Leicestershire Partnership NHS Trust,01/04/22,NURSE - BAND 2 - AGENCY,Welford Ward,HCL NURSING,HNSI0000992,1425.47
Department of Health,Leicestershire Partnership NHS Trust,01/04/22,NURSE - BAND 5 - AGENCY,Welford Ward,HCL NURSING,HNSI0000992,3765.10
Department of Health,Leicestershire Partnership NHS Trust,01/04/22,Nurse - Band 6 -Agency,CAMHS HUB / CAP,HCL SOCIAL CARE,HWSI0001103,6016.45
Department of Health,Leicestershire Partnership NHS Trust,01/04/22,Nurse - Band 6 -Agency,CAMHS Waiting List Monies,HCL SOCIAL CARE,HWSI0001103,28627.44
Department of Health,Leicestershire Partnership NHS Trust,01/04/22,Nurse - Band 6 -Agency,Crisis Response and Home Treatment,HCL SOCIAL CARE,HWSI0001103,1934.86
Department of Health,Leicestershire Partnership NHS Trust,01/04/22,NURSE - BAND 2 - AGENCY,CAMHS ED Team,HCL NURSING,HNSI0000994,4370.58
Department of Health,Leicestershire Partnership NHS Trust,01/04/22,NURSE - BAND 2 - AGENCY,CAMHS Inpatient Service,HCL NURSING,HNSI0000994,12572.01
Department of Health,Leicestershire Partnership NHS Trust,01/04/22,NURSE - BAND 5 - AGENCY,CAMHS Inpatient Service,HCL NURSING,HNSI0000994,6946.54
Department of Health,Leicestershire Partnership NHS Trust,01/04/22,Nurse - Band 6 -Agency,CAMHS Waiting List Monies,HCL NURSING,HNSI0000994,3996.31
Department of Health,Leicestershire Partnership NHS Trust,01/04/22,NURSE - BAND 2 - AGENCY,Langley Ward ED Inpatient Service,HCL NURSING,HNSI0000994,2297.02
Department of Health,Leicestershire Partnership NHS Trust,01/04/22,NURSE - BAND 5 - AGENCY,Langley Ward ED Inpatient Service,HCL NURSING,HNSI0000994,3867.16
Department of Health,Leicestershire Partnership NHS Trust,01/04/22,Payroll Deductions -Salary Sacrifice Cars Scheme,Balance Sheet Collection,TUSKER,58354,34036.34
Department of Health,Leicestershire Partnership NHS Trust,01/04/22,Professional & Technical Agency,Adult City Central CMHT - St Peters,MSI RECRUITMENT,MSIR110322,1871.27
Department of Health,Leicestershire Partnership NHS Trust,01/04/22,OCCUPATIONAL THERAPIST - AGENCY,Asperger Diagnostic Service Admin,MSI RECRUITMENT,MSIR110322,2192.88
Department of Health,Leicestershire Partnership NHS Trust,01/04/22,OCCUPATIONAL THERAPIST - AGENCY,Crisis Resolution,MSI RECRUITMENT,MSIR110322,495.24
Department of Health,Leicestershire Partnership NHS Trust,01/04/22,PHYSIOTHERAPY - AGENCY,East Planned Care - Blaby/Lutt - Therapy,MSI RECRUITMENT,MSIR110322,1259.83
Department of Health,Leicestershire Partnership NHS Trust,01/04/22,PHYSIOTHERAPY - AGENCY,MHSOP Inpatient Therapy - Bennion,MSI RECRUITMENT,MSIR110322,1116.80
Department of Health,Leicestershire Partnership NHS Trust,01/04/22,PHYSIOTHERAPY - AGENCY,MSK Physiotherapy,MSI RECRUITMENT,MSIR110322,2412.29
Department of Health,Leicestershire Partnership NHS Trust,01/04/22,PAMS - AGENCY,N&D Primary Care and Mental Health,MSI RECRUITMENT,MSIR110322,276.07
Department of Health,Leicestershire Partnership NHS Trust,01/04/22,OCCUPATIONAL THERAPIST - AGENCY,Neuro/Stroke Rehab Service,MSI RECRUITMENT,MSIR110322,3016.61
Department of Health,Leicestershire Partnership NHS Trust,01/04/22,PHYSIOTHERAPY - AGENCY,Neuro/Stroke Rehab Service,MSI RECRUITMENT,MSIR110322,2386.27
Department of Health,Leicestershire Partnership NHS Trust,01/04/22,PHYSIOTHERAPY - AGENCY,West Planned Care  - Charnwood Hub - Therapy,MSI RECRUITMENT,MSIR110322,1420.16
Department of Health,Leicestershire Partnership NHS Trust,01/04/22,PHYSIOTHERAPY - AGENCY,West Planned Care  - Hinckley Hub - Therapy,MSI RECRUITMENT,MSIR110322,21202.27
Department of Health,Leicestershire Partnership NHS Trust,01/04/22,NURSE - BAND 2 - AGENCY,Beechwood Ward,HCL NURSING,HNSI0000993,2685.18
Department of Health,Leicestershire Partnership NHS Trust,01/04/22,NURSE - BAND 5 - AGENCY,Beechwood Ward,HCL NURSING,HNSI0000993,1484.38
Department of Health,Leicestershire Partnership NHS Trust,01/04/22,NURSE - BAND 5 - AGENCY,City Planned Care - East,HCL NURSING,HNSI0000993,15147.09
Department of Health,Leicestershire Partnership NHS Trust,01/04/22,NURSE - BAND 5 - AGENCY,City Planned Care - West,HCL NURSING,HNSI0000993,9946.63
Department of Health,Leicestershire Partnership NHS Trust,01/04/22,NURSE - BAND 2 - AGENCY,Clarendon Ward,HCL NURSING,HNSI0000993,2278.50
Department of Health,Leicestershire Partnership NHS Trust,01/04/22,NURSE - BAND 5 - AGENCY,Clarendon Ward,HCL NURSING,HNSI0000993,8299.67
Department of Health,Leicestershire Partnership NHS Trust,01/04/22,NURSE - BAND 2 - AGENCY,Coalville Snibston Ward,HCL NURSING,HNSI0000993,1671.49
Department of Health,Leicestershire Partnership NHS Trust,01/04/22,NURSE - BAND 5 - AGENCY,Coalville Snibston Ward,HCL NURSING,HNSI0000993,2399.24
Department of Health,Leicestershire Partnership NHS Trust,01/04/22,NURSE - BAND 2 - AGENCY,Coalville Ward 2,HCL NURSING,HNSI0000993,1667.61
Department of Health,Leicestershire Partnership NHS Trust,01/04/22,NURSE - BAND 5 - AGENCY,Coalville Ward 2,HCL NURSING,HNSI0000993,4984.64
Department of Health,Leicestershire Partnership NHS Trust,01/04/22,NURSE - BAND 2 - AGENCY,Dalgliesh Ward,HCL NURSING,HNSI0000993,2281.48
Department of Health,Leicestershire Partnership NHS Trust,01/04/22,NURSE - BAND 5 - AGENCY,Dalgliesh Ward,HCL NURSING,HNSI0000993,1846.51
Department of Health,Leicestershire Partnership NHS Trust,01/04/22,NURSE - BAND 5 - AGENCY,"East Planned Care - Oadby,Wigston & Harborough",HCL NURSING,HNSI0000993,124.03
Department of Health,Leicestershire Partnership NHS Trust,01/04/22,NURSE - BAND 2 - AGENCY,H&B Comm Hosp East Ward,HCL NURSING,HNSI0000993,7534.40
Department of Health,Leicestershire Partnership NHS Trust,01/04/22,NURSE - BAND 5 - AGENCY,H&B Comm Hosp East Ward,HCL NURSING,HNSI0000993,8294.50
Department of Health,Leicestershire Partnership NHS Trust,01/04/22,NURSE - BAND 2 - AGENCY,H&B Comm Hosp North Ward,HCL NURSING,HNSI0000993,6838.90
Department of Health,Leicestershire Partnership NHS Trust,01/04/22,NURSE - BAND 5 - AGENCY,H&B Comm Hosp North Ward,HCL NURSING,HNSI0000993,3261.20
Department of Health,Leicestershire Partnership NHS Trust,01/04/22,NURSE - BAND 2 - AGENCY,Lough Swithland Ward,HCL NURSING,HNSI0000993,1817.75
Department of Health,Leicestershire Partnership NHS Trust,01/04/22,NURSE - BAND 5 - AGENCY,Lough Swithland Ward,HCL NURSING,HNSI0000993,4620.03
Department of Health,Leicestershire Partnership NHS Trust,01/04/22,NURSE - BAND 2 - AGENCY,Rutland Ward Nursing,HCL NURSING,HNSI0000993,7121.07
Department of Health,Leicestershire Partnership NHS Trust,01/04/22,NURSE - BAND 5 - AGENCY,Rutland Ward Nursing,HCL NURSING,HNSI0000993,2100.85
Department of Health,Leicestershire Partnership NHS Trust,01/04/22,NURSE - BAND 2 - AGENCY,St Lukes Stroke Ward,HCL NURSING,HNSI0000993,993.39
Department of Health,Leicestershire Partnership NHS Trust,01/04/22,NURSE - BAND 5 - AGENCY,St Lukes Stroke Ward,HCL NURSING,HNSI0000993,3145.16
Department of Health,Leicestershire Partnership NHS Trust,01/04/22,NURSE - BAND 2 - AGENCY,St Lukes Ward 3,HCL NURSING,HNSI0000993,4158.64
Department of Health,Leicestershire Partnership NHS Trust,01/04/22,NURSE - BAND 5 - AGENCY,St Lukes Ward 3,HCL NURSING,HNSI0000993,1079.20
Department of Health,Leicestershire Partnership NHS Trust,01/04/22,NURSE - BAND 2 - AGENCY,Wakerley Ward,HCL NURSING,HNSI0000993,9059.07
Department of Health,Leicestershire Partnership NHS Trust,01/04/22,NURSE - BAND 5 - AGENCY,Wakerley Ward,HCL NURSING,HNSI0000993,6483.70
Department of Health,Leicestershire Partnership NHS Trust,04/04/22,HIS LPT Costs,HIS,INSIGHT DIRECT (UK) LTD,2100185509,67098.00
Department of Health,Leicestershire Partnership NHS Trust,04/04/22,CHP Estates Management,Merlyn Vaz Centre (CHP),COMM HLTH PARTNERSHIPS LTD,0060237025,69211.53
Department of Health,Leicestershire Partnership NHS Trust,04/04/22,External Data Processing / Storage,Records & information Governance,H COATES LTD/TA C&V DATA,4008791,32136.51
Department of Health,Leicestershire Partnership NHS Trust,05/04/22,Rates,"Bridge Park Road - Units 2 and 3 (P148, LPT)",CHARNWOOD BOROUGH COUNCIL,96260445/22-23,36352.00
Department of Health,Leicestershire Partnership NHS Trust,05/04/22,Rates,"Loughborough Hospital (P136, LPT)",CHARNWOOD BOROUGH COUNCIL,96034105/22-23,208640.00
Department of Health,Leicestershire Partnership NHS Trust,05/04/22,Rates,Bridge Park Plaza - First Floor (LPT),CHARNWOOD BOROUGH COUNCIL,96250653/22-23,139520.00
Department of Health,Leicestershire Partnership NHS Trust,05/04/22,Rent,County Hall,LEIC COUNTY COUNCIL,6290735,34488.50
Department of Health,Leicestershire Partnership NHS Trust,05/04/22,Rates,"Orchard Resource Centre (P15, LPT)",HINCKLEY & BOS BOR COUNCIL,101125389/22-23,35584.00
Department of Health,Leicestershire Partnership NHS Trust,05/04/22,Rates,"Hynca Lodge (P33, LPT)",HINCKLEY & BOS BOR COUNCIL,101182995/22-23,47872.00
Department of Health,Leicestershire Partnership NHS Trust,05/04/22,Rates,"Hinckley and Bosworth Community Hospital (Sunnyside) (P133, LPT)",HINCKLEY & BOS BOR COUNCIL,101215613/22-23,93184.00
Department of Health,Leicestershire Partnership NHS Trust,05/04/22,Rates,"Coalville Community Hospital (P138, LPT)",HINCKLEY & BOS BOR COUNCIL,2001095931/22-23,105472.00
Department of Health,Leicestershire Partnership NHS Trust,05/04/22,Rates,"Westcotes Group -Westcotes House (P78, LPT)",LEIC CITY COUNCIL,8001246533/22-23,38400.00
Department of Health,Leicestershire Partnership NHS Trust,05/04/22,Rates,"Prince Philip House (P96, LPT)",LEIC CITY COUNCIL,8002301995/22-23,35328.00
Department of Health,Leicestershire Partnership NHS Trust,05/04/22,Rates,"OSL House (P54, LPT)",BLABY DISTRICT COUNCIL,N030054285/22-23,54272.00
Department of Health,Leicestershire Partnership NHS Trust,05/04/22,Unitary Payment,"The Agnes Unit (AKA Assessment and Treatment Centre) (P85, LPT)",ARDEN PARTNERSHIP (LEICESTER),SI0093,121285.42
Department of Health,Leicestershire Partnership NHS Trust,05/04/22,NURSE - BAND 6,LD - ASD,LEIC CITY COUNCIL,89123763,-70000.00
Department of Health,Leicestershire Partnership NHS Trust,05/04/22,NURSE - BAND 6,LD County Nursing,LEIC CITY COUNCIL,89123763,-180000.00
Department of Health,Leicestershire Partnership NHS Trust,05/04/22,Rates,"Evington Centre (P6, LPT)",LEIC CITY COUNCIL,8002517107/22-23,74240.00
Department of Health,Leicestershire Partnership NHS Trust,05/04/22,Rates,"Valentine Centre (P3, LPT)",LEIC CITY COUNCIL,8001276348/22-23,37419.86
Department of Health,Leicestershire Partnership NHS Trust,05/04/22,Rates,"Bradgate Unit (including Glenvale day Unit) (P7, LPT)",LEIC CITY COUNCIL,8002537317/22-23,198400.00
Department of Health,Leicestershire Partnership NHS Trust,06/04/22,Rates,"Swithland House - London Road 352 (P44, LPT)",OADBY&WIGSTON BOROUGH COUNCIL,90359910/22-23,26368.00
Department of Health,Leicestershire Partnership NHS Trust,06/04/22,Services / Recharges from NHS Trusts,Adult Eating Disorder Collaborative,ROTHERHAM DONC & S HUMBER NHS FT (RXE),0000092065,60692.39
Department of Health,Leicestershire Partnership NHS Trust,06/04/22,Healthcare Services / Recharges from Non-NHS Bodies,CAMHS Outpatients,HEALIOS LTD,2485,39000.00
Department of Health,Leicestershire Partnership NHS Trust,07/04/22,Rent,NSPCC Training Cente,NSPCC,119619,28752.40
Department of Health,Leicestershire Partnership NHS Trust,08/04/22,HIS LPT Costs,HIS,THE PHOENIX PARTNERSHIP,13378,1184715.83
Department of Health,Leicestershire Partnership NHS Trust,08/04/22,Nurse - Band 6 -Agency,AMH - Central Access Point,HCL NURSING,HNSI0001000,1710.35
Department of Health,Leicestershire Partnership NHS Trust,08/04/22,Nurse - Band 6 -Agency,Adult City East CMHT - Merlyn Vaz,HCL NURSING,HNSI0001000,1134.16
Department of Health,Leicestershire Partnership NHS Trust,08/04/22,Nurse - Band 6 -Agency,Adult County Charnwood CMHT - Loughborough Base,HCL NURSING,HNSI0001000,1069.97
Department of Health,Leicestershire Partnership NHS Trust,08/04/22,NURSE - BAND 2 - AGENCY,Agnes Unit Management,HCL NURSING,HNSI0001000,22426.25
Department of Health,Leicestershire Partnership NHS Trust,08/04/22,NURSE - BAND 5 - AGENCY,Agnes Unit Management,HCL NURSING,HNSI0001000,18471.80
Department of Health,Leicestershire Partnership NHS Trust,08/04/22,NURSE - BAND 2 - AGENCY,Ashby Ward (Bradgate Unit),HCL NURSING,HNSI0001000,940.72
Department of Health,Leicestershire Partnership NHS Trust,08/04/22,NURSE - BAND 5 - AGENCY,Ashby Ward (Bradgate Unit),HCL NURSING,HNSI0001000,3746.75
Department of Health,Leicestershire Partnership NHS Trust,08/04/22,NURSE - BAND 2 - AGENCY,Aston Ward (Bradgate Unit),HCL NURSING,HNSI0001000,9727.30
Department of Health,Leicestershire Partnership NHS Trust,08/04/22,NURSE - BAND 5 - AGENCY,Aston Ward (Bradgate Unit),HCL NURSING,HNSI0001000,16979.83
Department of Health,Leicestershire Partnership NHS Trust,08/04/22,NURSE - BAND 2 - AGENCY,Beaumont Ward - Bradgate Unit,HCL NURSING,HNSI0001000,9993.01
Department of Health,Leicestershire Partnership NHS Trust,08/04/22,NURSE - BAND 5 - AGENCY,Beaumont Ward - Bradgate Unit,HCL NURSING,HNSI0001000,14887.86
Department of Health,Leicestershire Partnership NHS Trust,08/04/22,NURSE - BAND 2 - AGENCY,Belvoir Psychiatric Intensive Care Unit,HCL NURSING,HNSI0001000,1218.25
Department of Health,Leicestershire Partnership NHS Trust,08/04/22,NURSE - BAND 5 - AGENCY,Belvoir Psychiatric Intensive Care Unit,HCL NURSING,HNSI0001000,4527.90
Department of Health,Leicestershire Partnership NHS Trust,08/04/22,NURSE - BAND 2 - AGENCY,Cedar (Willows),HCL NURSING,HNSI0001000,1489.88
Department of Health,Leicestershire Partnership NHS Trust,08/04/22,NURSE - BAND 5 - AGENCY,Cedar (Willows),HCL NURSING,HNSI0001000,3720.39
Department of Health,Leicestershire Partnership NHS Trust,08/04/22,Nurse - Band 6 -Agency,City West CMHT MHSOP,HCL NURSING,HNSI0001000,1046.25
Department of Health,Leicestershire Partnership NHS Trust,08/04/22,NURSE - BAND 2 - AGENCY,Coleman Ward,HCL NURSING,HNSI0001000,14085.10
Department of Health,Leicestershire Partnership NHS Trust,08/04/22,NURSE - BAND 5 - AGENCY,Coleman Ward,HCL NURSING,HNSI0001000,4218.36
Department of Health,Leicestershire Partnership NHS Trust,08/04/22,NURSE - BAND 5 - AGENCY,Crisis Resolution,HCL NURSING,HNSI0001000,2089.08
Department of Health,Leicestershire Partnership NHS Trust,08/04/22,NURSE - BAND 2 - AGENCY,Griffin Ward (HPC),HCL NURSING,HNSI0001000,12440.30
Department of Health,Leicestershire Partnership NHS Trust,08/04/22,NURSE - BAND 5 - AGENCY,Griffin Ward (HPC),HCL NURSING,HNSI0001000,3385.39
Department of Health,Leicestershire Partnership NHS Trust,08/04/22,NURSE - BAND 2 - AGENCY,Heather Ward,HCL NURSING,HNSI0001000,3250.69
Department of Health,Leicestershire Partnership NHS Trust,08/04/22,NURSE - BAND 5 - AGENCY,Heather Ward,HCL NURSING,HNSI0001000,6442.85
Department of Health,Leicestershire Partnership NHS Trust,08/04/22,NURSE - BAND 2 - AGENCY,Kirby Ward,HCL NURSING,HNSI0001000,3515.19
Department of Health,Leicestershire Partnership NHS Trust,08/04/22,NURSE - BAND 5 - AGENCY,Kirby Ward,HCL NURSING,HNSI0001000,1486.92
Department of Health,Leicestershire Partnership NHS Trust,08/04/22,NURSE - BAND 2 - AGENCY,Maple Ward,HCL NURSING,HNSI0001000,2988.15
Department of Health,Leicestershire Partnership NHS Trust,08/04/22,NURSE - BAND 5 - AGENCY,Maple Ward,HCL NURSING,HNSI0001000,1215.00
Department of Health,Leicestershire Partnership NHS Trust,08/04/22,Nurse - Band 6 -Agency,Mental Health Liaison Team,HCL NURSING,HNSI0001000,1773.46
Department of Health,Leicestershire Partnership NHS Trust,08/04/22,NURSE - BAND 2 - AGENCY,Mill Lodge,HCL NURSING,HNSI0001000,4315.13
Department of Health,Leicestershire Partnership NHS Trust,08/04/22,NURSE - BAND 5 - AGENCY,Mill Lodge,HCL NURSING,HNSI0001000,10305.52
Department of Health,Leicestershire Partnership NHS Trust,08/04/22,NURSE - BAND 2 - AGENCY,Phoenix Ward (HPC),HCL NURSING,HNSI0001000,3828.65
Department of Health,Leicestershire Partnership NHS Trust,08/04/22,NURSE - BAND 5 - AGENCY,Phoenix Ward (HPC),HCL NURSING,HNSI0001000,2827.86
Department of Health,Leicestershire Partnership NHS Trust,08/04/22,NURSE - BAND 2 - AGENCY,Place Of Safety Assessment Unit,HCL NURSING,HNSI0001000,459.24
Department of Health,Leicestershire Partnership NHS Trust,08/04/22,NURSE - BAND 5 - AGENCY,Place Of Safety Assessment Unit,HCL NURSING,HNSI0001000,6529.55
Department of Health,Leicestershire Partnership NHS Trust,08/04/22,NURSE - BAND 2 - AGENCY,Stewart House,HCL NURSING,HNSI0001000,1452.90
Department of Health,Leicestershire Partnership NHS Trust,08/04/22,NURSE - BAND 5 - AGENCY,Stewart House,HCL NURSING,HNSI0001000,4415.48
Department of Health,Leicestershire Partnership NHS Trust,08/04/22,NURSE - BAND 2 - AGENCY,Sycamore (Willows),HCL NURSING,HNSI0001000,2559.13
Department of Health,Leicestershire Partnership NHS Trust,08/04/22,NURSE - BAND 5 - AGENCY,Sycamore (Willows),HCL NURSING,HNSI0001000,4438.41
Department of Health,Leicestershire Partnership NHS Trust,08/04/22,NURSE - BAND 2 - AGENCY,Thornton Ward - Bradgate Unit,HCL NURSING,HNSI0001000,908.32
Department of Health,Leicestershire Partnership NHS Trust,08/04/22,NURSE - BAND 5 - AGENCY,Thornton Ward - Bradgate Unit,HCL NURSING,HNSI0001000,2604.47
Department of Health,Leicestershire Partnership NHS Trust,08/04/22,NURSE - BAND 2 - AGENCY,Watermead Ward (Bradgate Unit),HCL NURSING,HNSI0001000,4291.61
Department of Health,Leicestershire Partnership NHS Trust,08/04/22,NURSE - BAND 5 - AGENCY,Watermead Ward (Bradgate Unit),HCL NURSING,HNSI0001000,11820.52
Department of Health,Leicestershire Partnership NHS Trust,08/04/22,NURSE - BAND 2 - AGENCY,Welford Ward,HCL NURSING,HNSI0001000,1408.98
Department of Health,Leicestershire Partnership NHS Trust,08/04/22,NURSE - BAND 5 - AGENCY,Welford Ward,HCL NURSING,HNSI0001000,974.30
Department of Health,Leicestershire Partnership NHS Trust,08/04/22,Nurse - Band 6 -Agency,CAMHS HUB / CAP,HCL SOCIAL CARE,HWSI0001115,8874.89
Department of Health,Leicestershire Partnership NHS Trust,08/04/22,Nurse - Band 6 -Agency,CAMHS Waiting List Monies,HCL SOCIAL CARE,HWSI0001115,24833.01
Department of Health,Leicestershire Partnership NHS Trust,08/04/22,Nurse - Band 6 -Agency,Crisis Response and Home Treatment,HCL SOCIAL CARE,HWSI0001115,1934.86
Department of Health,Leicestershire Partnership NHS Trust,08/04/22,NURSE - BAND 2 - AGENCY,CAMHS ED Team,HCL NURSING,HNSI0001002,4517.02
Department of Health,Leicestershire Partnership NHS Trust,08/04/22,NURSE - BAND 2 - AGENCY,CAMHS Inpatient Service,HCL NURSING,HNSI0001002,15923.35
Department of Health,Leicestershire Partnership NHS Trust,08/04/22,NURSE - BAND 5 - AGENCY,CAMHS Inpatient Service,HCL NURSING,HNSI0001002,5169.65
Department of Health,Leicestershire Partnership NHS Trust,08/04/22,NURSE - BAND 2 - AGENCY,CAMHS Outpatients,HCL NURSING,HNSI0001002,952.99
Department of Health,Leicestershire Partnership NHS Trust,08/04/22,Nurse - Band 6 -Agency,CAMHS Waiting List Monies,HCL NURSING,HNSI0001002,5604.26
Department of Health,Leicestershire Partnership NHS Trust,08/04/22,NURSE - BAND 2 - AGENCY,Langley Ward ED Inpatient Service,HCL NURSING,HNSI0001002,1179.42
Department of Health,Leicestershire Partnership NHS Trust,08/04/22,NURSE - BAND 5 - AGENCY,Langley Ward ED Inpatient Service,HCL NURSING,HNSI0001002,7168.78
Department of Health,Leicestershire Partnership NHS Trust,08/04/22,Healthcare Services / Recharges from Non-NHS Bodies,Adult Eating Disorder Collaborative,ELLERN MEDE MOORGATE,OTM0210,37200.00
Department of Health,Leicestershire Partnership NHS Trust,11/04/22,Prep_ LT1y -Prepayments Lease Cars,Balance Sheet Collection,BRIAN JOHNSTON & CO LTD,601711/457156,121388.40
Department of Health,Leicestershire Partnership NHS Trust,12/04/22,Crs_NHS_LT1y -Resus Inventory Supplied.,Balance Sheet Collection,SUPPLY CHAIN CO LTD,1123002280,35643.85
Department of Health,Leicestershire Partnership NHS Trust,12/04/22,Computer License  Fees,Finance Department,ORACLE CORPORATION,460033575,33450.71
Department of Health,Leicestershire Partnership NHS Trust,13/04/22,NURSE - BAND 2 - AGENCY,Beechwood Ward,HCL NURSING,HNSI0001001,2262.79
Department of Health,Leicestershire Partnership NHS Trust,13/04/22,NURSE - BAND 5 - AGENCY,Beechwood Ward,HCL NURSING,HNSI0001001,224.81
Department of Health,Leicestershire Partnership NHS Trust,13/04/22,NURSE - BAND 5 - AGENCY,City Planned Care - East,HCL NURSING,HNSI0001001,4127.86
Department of Health,Leicestershire Partnership NHS Trust,13/04/22,NURSE - BAND 5 - AGENCY,City Planned Care - West,HCL NURSING,HNSI0001001,3603.76
Department of Health,Leicestershire Partnership NHS Trust,13/04/22,NURSE - BAND 2 - AGENCY,Clarendon Ward,HCL NURSING,HNSI0001001,1546.26
Department of Health,Leicestershire Partnership NHS Trust,13/04/22,NURSE - BAND 5 - AGENCY,Clarendon Ward,HCL NURSING,HNSI0001001,2185.56
Department of Health,Leicestershire Partnership NHS Trust,13/04/22,NURSE - BAND 2 - AGENCY,Coalville Snibston Ward,HCL NURSING,HNSI0001001,2533.76
Department of Health,Leicestershire Partnership NHS Trust,13/04/22,NURSE - BAND 5 - AGENCY,Coalville Snibston Ward,HCL NURSING,HNSI0001001,392.91
Department of Health,Leicestershire Partnership NHS Trust,13/04/22,NURSE - BAND 2 - AGENCY,Coalville Ward 2,HCL NURSING,HNSI0001001,811.26
Department of Health,Leicestershire Partnership NHS Trust,13/04/22,NURSE - BAND 5 - AGENCY,Coalville Ward 2,HCL NURSING,HNSI0001001,1575.54
Department of Health,Leicestershire Partnership NHS Trust,13/04/22,NURSE - BAND 2 - AGENCY,Dalgliesh Ward,HCL NURSING,HNSI0001001,805.45
Department of Health,Leicestershire Partnership NHS Trust,13/04/22,NURSE - BAND 5 - AGENCY,Dalgliesh Ward,HCL NURSING,HNSI0001001,532.35
Department of Health,Leicestershire Partnership NHS Trust,13/04/22,NURSE - BAND 2 - AGENCY,H&B Comm Hosp East Ward,HCL NURSING,HNSI0001001,2055.38
Department of Health,Leicestershire Partnership NHS Trust,13/04/22,NURSE - BAND 5 - AGENCY,H&B Comm Hosp East Ward,HCL NURSING,HNSI0001001,6079.29
Department of Health,Leicestershire Partnership NHS Trust,13/04/22,NURSE - BAND 2 - AGENCY,H&B Comm Hosp North Ward,HCL NURSING,HNSI0001001,3579.69
Department of Health,Leicestershire Partnership NHS Trust,13/04/22,NURSE - BAND 5 - AGENCY,H&B Comm Hosp North Ward,HCL NURSING,HNSI0001001,1043.55
Department of Health,Leicestershire Partnership NHS Trust,13/04/22,NURSE - BAND 2 - AGENCY,Lough Swithland Ward,HCL NURSING,HNSI0001001,748.29
Department of Health,Leicestershire Partnership NHS Trust,13/04/22,NURSE - BAND 5 - AGENCY,Lough Swithland Ward,HCL NURSING,HNSI0001001,2230.20
Department of Health,Leicestershire Partnership NHS Trust,13/04/22,NURSE - BAND 2 - AGENCY,Non Recurrent 2012/13,HCL NURSING,HNSI0001001,20051.21
Department of Health,Leicestershire Partnership NHS Trust,13/04/22,NURSE - BAND 5 - AGENCY,Non Recurrent 2012/13,HCL NURSING,HNSI0001001,41730.44
Department of Health,Leicestershire Partnership NHS Trust,13/04/22,NURSE - BAND 2 - AGENCY,Rutland Ward Nursing,HCL NURSING,HNSI0001001,1553.75
Department of Health,Leicestershire Partnership NHS Trust,13/04/22,NURSE - BAND 5 - AGENCY,Rutland Ward Nursing,HCL NURSING,HNSI0001001,770.31
Department of Health,Leicestershire Partnership NHS Trust,13/04/22,NURSE - BAND 2 - AGENCY,St Lukes Stroke Ward,HCL NURSING,HNSI0001001,816.74
Department of Health,Leicestershire Partnership NHS Trust,13/04/22,NURSE - BAND 5 - AGENCY,St Lukes Stroke Ward,HCL NURSING,HNSI0001001,1180.00
Department of Health,Leicestershire Partnership NHS Trust,13/04/22,NURSE - BAND 2 - AGENCY,St Lukes Ward 3,HCL NURSING,HNSI0001001,1197.73
Department of Health,Leicestershire Partnership NHS Trust,13/04/22,NURSE - BAND 5 - AGENCY,St Lukes Ward 3,HCL NURSING,HNSI0001001,478.03
Department of Health,Leicestershire Partnership NHS Trust,13/04/22,NURSE - BAND 2 - AGENCY,Wakerley Ward,HCL NURSING,HNSI0001001,4021.69
Department of Health,Leicestershire Partnership NHS Trust,13/04/22,NURSE - BAND 5 - AGENCY,Wakerley Ward,HCL NURSING,HNSI0001001,2818.30
Department of Health,Leicestershire Partnership NHS Trust,13/04/22,Mobile Telephone Rental / Calls,Specific Unit Budget Reserves,VODAFONE CORPORATE LTD,000100933236,61284.74
Department of Health,Leicestershire Partnership NHS Trust,14/04/22,NURSE - BAND 2 - AGENCY,CAMHS Inpatient Service,Prometheus complex care ltd,0000000504,41199.00
Department of Health,Leicestershire Partnership NHS Trust,14/04/22,NURSE - BAND 2 - AGENCY,CAMHS Inpatient Service,Prometheus complex care ltd,0000000522,27701.00
Department of Health,Leicestershire Partnership NHS Trust,19/04/22,Nurse - Band 6 -Agency,AMH - Central Access Point,HCL NURSING,HNSI0001004,1735.25
Department of Health,Leicestershire Partnership NHS Trust,19/04/22,Nurse - Band 6 -Agency,Adult City East CMHT - Merlyn Vaz,HCL NURSING,HNSI0001004,1060.79
Department of Health,Leicestershire Partnership NHS Trust,19/04/22,Nurse - Band 6 -Agency,Adult County West Leicestershire CMHT,HCL NURSING,HNSI0001004,1079.94
Department of Health,Leicestershire Partnership NHS Trust,19/04/22,NURSE - BAND 2 - AGENCY,Agnes Unit Management,HCL NURSING,HNSI0001004,23578.84
Department of Health,Leicestershire Partnership NHS Trust,19/04/22,NURSE - BAND 5 - AGENCY,Agnes Unit Management,HCL NURSING,HNSI0001004,19109.49
Department of Health,Leicestershire Partnership NHS Trust,19/04/22,NURSE - BAND 2 - AGENCY,Ashby Ward (Bradgate Unit),HCL NURSING,HNSI0001004,315.78
Department of Health,Leicestershire Partnership NHS Trust,19/04/22,NURSE - BAND 5 - AGENCY,Ashby Ward (Bradgate Unit),HCL NURSING,HNSI0001004,2244.45
Department of Health,Leicestershire Partnership NHS Trust,19/04/22,NURSE - BAND 2 - AGENCY,Aston Ward (Bradgate Unit),HCL NURSING,HNSI0001004,11147.34
Department of Health,Leicestershire Partnership NHS Trust,19/04/22,NURSE - BAND 5 - AGENCY,Aston Ward (Bradgate Unit),HCL NURSING,HNSI0001004,11307.01
Department of Health,Leicestershire Partnership NHS Trust,19/04/22,NURSE - BAND 2 - AGENCY,Beaumont Ward - Bradgate Unit,HCL NURSING,HNSI0001004,9639.54
Department of Health,Leicestershire Partnership NHS Trust,19/04/22,NURSE - BAND 5 - AGENCY,Beaumont Ward - Bradgate Unit,HCL NURSING,HNSI0001004,11519.44
Department of Health,Leicestershire Partnership NHS Trust,19/04/22,NURSE - BAND 2 - AGENCY,Belvoir Psychiatric Intensive Care Unit,HCL NURSING,HNSI0001004,2204.98
Department of Health,Leicestershire Partnership NHS Trust,19/04/22,NURSE - BAND 5 - AGENCY,Belvoir Psychiatric Intensive Care Unit,HCL NURSING,HNSI0001004,5817.97
Department of Health,Leicestershire Partnership NHS Trust,19/04/22,NURSE - BAND 5 - AGENCY,Bosworth Ward - Bradgate Unit,HCL NURSING,HNSI0001004,577.59
Department of Health,Leicestershire Partnership NHS Trust,19/04/22,NURSE - BAND 2 - AGENCY,Cedar (Willows),HCL NURSING,HNSI0001004,2050.49
Department of Health,Leicestershire Partnership NHS Trust,19/04/22,NURSE - BAND 5 - AGENCY,Cedar (Willows),HCL NURSING,HNSI0001004,6636.40
Department of Health,Leicestershire Partnership NHS Trust,19/04/22,Nurse - Band 6 -Agency,City West CMHT MHSOP,HCL NURSING,HNSI0001004,2112.00
Department of Health,Leicestershire Partnership NHS Trust,19/04/22,NURSE - BAND 2 - AGENCY,Coleman Ward,HCL NURSING,HNSI0001004,7382.35
Department of Health,Leicestershire Partnership NHS Trust,19/04/22,NURSE - BAND 5 - AGENCY,Coleman Ward,HCL NURSING,HNSI0001004,2356.77
Department of Health,Leicestershire Partnership NHS Trust,19/04/22,NURSE - BAND 5 - AGENCY,Crisis Resolution,HCL NURSING,HNSI0001004,2109.65
Department of Health,Leicestershire Partnership NHS Trust,19/04/22,NURSE - BAND 2 - AGENCY,Griffin Ward (HPC),HCL NURSING,HNSI0001004,10603.87
Department of Health,Leicestershire Partnership NHS Trust,19/04/22,NURSE - BAND 5 - AGENCY,Griffin Ward (HPC),HCL NURSING,HNSI0001004,4315.20
Department of Health,Leicestershire Partnership NHS Trust,19/04/22,NURSE - BAND 2 - AGENCY,Heather Ward,HCL NURSING,HNSI0001004,2846.25
Department of Health,Leicestershire Partnership NHS Trust,19/04/22,NURSE - BAND 5 - AGENCY,Heather Ward,HCL NURSING,HNSI0001004,5627.92
Department of Health,Leicestershire Partnership NHS Trust,19/04/22,NURSE - BAND 2 - AGENCY,Kirby Ward,HCL NURSING,HNSI0001004,6275.70
Department of Health,Leicestershire Partnership NHS Trust,19/04/22,NURSE - BAND 5 - AGENCY,Kirby Ward,HCL NURSING,HNSI0001004,3710.78
Department of Health,Leicestershire Partnership NHS Trust,19/04/22,NURSE - BAND 2 - AGENCY,Maple Ward,HCL NURSING,HNSI0001004,1785.53
Department of Health,Leicestershire Partnership NHS Trust,19/04/22,NURSE - BAND 5 - AGENCY,Maple Ward,HCL NURSING,HNSI0001004,2855.28
Department of Health,Leicestershire Partnership NHS Trust,19/04/22,Nurse - Band 6 -Agency,Mental Health Liaison Team,HCL NURSING,HNSI0001004,1760.36
Department of Health,Leicestershire Partnership NHS Trust,19/04/22,NURSE - BAND 2 - AGENCY,Mill Lodge,HCL NURSING,HNSI0001004,3431.62
Department of Health,Leicestershire Partnership NHS Trust,19/04/22,NURSE - BAND 5 - AGENCY,Mill Lodge,HCL NURSING,HNSI0001004,15460.39
Department of Health,Leicestershire Partnership NHS Trust,19/04/22,NURSE - BAND 2 - AGENCY,Phoenix Ward (HPC),HCL NURSING,HNSI0001004,5685.14
Department of Health,Leicestershire Partnership NHS Trust,19/04/22,NURSE - BAND 5 - AGENCY,Phoenix Ward (HPC),HCL NURSING,HNSI0001004,453.80
Department of Health,Leicestershire Partnership NHS Trust,19/04/22,NURSE - BAND 2 - AGENCY,Place Of Safety Assessment Unit,HCL NURSING,HNSI0001004,739.51
Department of Health,Leicestershire Partnership NHS Trust,19/04/22,NURSE - BAND 5 - AGENCY,Place Of Safety Assessment Unit,HCL NURSING,HNSI0001004,4689.78
Department of Health,Leicestershire Partnership NHS Trust,19/04/22,NURSE - BAND 5 - AGENCY,Stewart House,HCL NURSING,HNSI0001004,1201.71
Department of Health,Leicestershire Partnership NHS Trust,19/04/22,NURSE - BAND 2 - AGENCY,Sycamore (Willows),HCL NURSING,HNSI0001004,4107.84
Department of Health,Leicestershire Partnership NHS Trust,19/04/22,NURSE - BAND 5 - AGENCY,Sycamore (Willows),HCL NURSING,HNSI0001004,6584.69
Department of Health,Leicestershire Partnership NHS Trust,19/04/22,NURSE - BAND 2 - AGENCY,Thornton Ward - Bradgate Unit,HCL NURSING,HNSI0001004,1430.20
Department of Health,Leicestershire Partnership NHS Trust,19/04/22,NURSE - BAND 5 - AGENCY,Thornton Ward - Bradgate Unit,HCL NURSING,HNSI0001004,577.59
Department of Health,Leicestershire Partnership NHS Trust,19/04/22,NURSE - BAND 2 - AGENCY,Watermead Ward (Bradgate Unit),HCL NURSING,HNSI0001004,3472.85
Department of Health,Leicestershire Partnership NHS Trust,19/04/22,NURSE - BAND 5 - AGENCY,Watermead Ward (Bradgate Unit),HCL NURSING,HNSI0001004,10085.73
Department of Health,Leicestershire Partnership NHS Trust,19/04/22,NURSE - BAND 2 - AGENCY,Welford Ward,HCL NURSING,HNSI0001004,1779.19
Department of Health,Leicestershire Partnership NHS Trust,19/04/22,NURSE - BAND 5 - AGENCY,Welford Ward,HCL NURSING,HNSI0001004,1932.95
Department of Health,Leicestershire Partnership NHS Trust,19/04/22,Nurse - Band 6 -Agency,CAMHS HUB / CAP,HCL SOCIAL CARE,HWSI0001122,1954.43
Department of Health,Leicestershire Partnership NHS Trust,19/04/22,Nurse - Band 6 -Agency,CAMHS Waiting List Monies,HCL SOCIAL CARE,HWSI0001122,28043.17
Department of Health,Leicestershire Partnership NHS Trust,19/04/22,Nurse - Band 6 -Agency,Crisis Response and Home Treatment,HCL SOCIAL CARE,HWSI0001122,8012.49
Department of Health,Leicestershire Partnership NHS Trust,19/04/22,NURSE - BAND 2 - AGENCY,CAMHS ED Team,HCL NURSING,HNSI0001006,3237.05
Department of Health,Leicestershire Partnership NHS Trust,19/04/22,NURSE - BAND 2 - AGENCY,CAMHS Inpatient Service,HCL NURSING,HNSI0001006,19931.61
Department of Health,Leicestershire Partnership NHS Trust,19/04/22,NURSE - BAND 5 - AGENCY,CAMHS Inpatient Service,HCL NURSING,HNSI0001006,4851.02
Department of Health,Leicestershire Partnership NHS Trust,19/04/22,Nurse - Band 6 -Agency,CAMHS Waiting List Monies,HCL NURSING,HNSI0001006,7615.43
Department of Health,Leicestershire Partnership NHS Trust,19/04/22,NURSE - BAND 2 - AGENCY,Langley Ward ED Inpatient Service,HCL NURSING,HNSI0001006,2000.80
Department of Health,Leicestershire Partnership NHS Trust,19/04/22,NURSE - BAND 5 - AGENCY,Langley Ward ED Inpatient Service,HCL NURSING,HNSI0001006,4714.45
Department of Health,Leicestershire Partnership NHS Trust,19/04/22,Computer Hardware,Crisis Resolution,DELL COMPUTERS,7402806240,35862.00
Department of Health,Leicestershire Partnership NHS Trust,19/04/22,Photocopying,Estates & Facilities Central,LEXMARK INTERNATIONAL LTD,900650303003,33886.66
Department of Health,Leicestershire Partnership NHS Trust,19/04/22,Photocopying,Finance Department,LEXMARK INTERNATIONAL LTD,900650303003,994.63
Department of Health,Leicestershire Partnership NHS Trust,19/04/22,Crs_NHS_LT1y -Resus Inventory Supplied.,Balance Sheet Collection,SUPPLY CHAIN CO LTD,1123008510,25308.27
Department of Health,Leicestershire Partnership NHS Trust,19/04/22,Water & Sewerage Charges,"Beaumont Leys Health Centre (P94, LPT)",WATER PLUS,0865005329/INV06033956,412.81
Department of Health,Leicestershire Partnership NHS Trust,19/04/22,Water & Sewerage Charges,Bridge Park Road (Unit C18) (LPT),WATER PLUS,0865005329/INV06033956,51.92
Department of Health,Leicestershire Partnership NHS Trust,19/04/22,Water & Sewerage Charges,"Bridge Park Road - Units 2 and 3 (P148, LPT)",WATER PLUS,0865005329/INV06033956,1257.09
Department of Health,Leicestershire Partnership NHS Trust,19/04/22,Water & Sewerage Charges,"Coalville Community Hospital (P138, LPT)",WATER PLUS,0865005329/INV06033956,2330.22
Department of Health,Leicestershire Partnership NHS Trust,19/04/22,Water & Sewerage Charges,"Coalville Health Centre (P121, LPT)",WATER PLUS,0865005329/INV06033956,576.25
Department of Health,Leicestershire Partnership NHS Trust,19/04/22,Water & Sewerage Charges,"Evington Centre (P6, LPT)",WATER PLUS,0865005329/INV06033956,2891.36
Department of Health,Leicestershire Partnership NHS Trust,19/04/22,Water & Sewerage Charges,"Feilding Palmer Hospital (Lutterworth) (P131, LPT)",WATER PLUS,0865005329/INV06033956,41.13
Department of Health,Leicestershire Partnership NHS Trust,19/04/22,Water & Sewerage Charges,HIS,WATER PLUS,0865005329/INV06033956,115.29
Department of Health,Leicestershire Partnership NHS Trust,19/04/22,Water & Sewerage Charges,Hinckley & District Hospital (PROPCO),WATER PLUS,0865005329/INV06033956,188.96
Department of Health,Leicestershire Partnership NHS Trust,19/04/22,Water & Sewerage Charges,"Hinckley and Bosworth Community Hospital (Sunnyside) (P133, LPT)",WATER PLUS,0865005329/INV06033956,2951.55
Department of Health,Leicestershire Partnership NHS Trust,19/04/22,Water & Sewerage Charges,"Hynca Lodge (P33, LPT)",WATER PLUS,0865005329/INV06033956,286.71
Department of Health,Leicestershire Partnership NHS Trust,19/04/22,Water & Sewerage Charges,Linnaeus Nursery - Cordelia Close,WATER PLUS,0865005329/INV06033956,508.14
Department of Health,Leicestershire Partnership NHS Trust,19/04/22,Water & Sewerage Charges,"Loughborough Hospital (P136, LPT)",WATER PLUS,0865005329/INV06033956,5176.59
Department of Health,Leicestershire Partnership NHS Trust,19/04/22,Water & Sewerage Charges,"Narborough Health Centre (P117, LPT)",WATER PLUS,0865005329/INV06033956,158.55
Department of Health,Leicestershire Partnership NHS Trust,19/04/22,Water & Sewerage Charges,"OSL House (P54, LPT)",WATER PLUS,0865005329/INV06033956,558.18
Department of Health,Leicestershire Partnership NHS Trust,19/04/22,Water & Sewerage Charges,"Orchard Resource Centre (P15, LPT)",WATER PLUS,0865005329/INV06033956,720.61
Department of Health,Leicestershire Partnership NHS Trust,19/04/22,Water & Sewerage Charges,"Prince Philip House (P96, LPT)",WATER PLUS,0865005329/INV06033956,389.24
Department of Health,Leicestershire Partnership NHS Trust,19/04/22,Water & Sewerage Charges,Rothesay -  London Road 352A (LPT),WATER PLUS,0865005329/INV06033956,1199.80
Department of Health,Leicestershire Partnership NHS Trust,19/04/22,Water & Sewerage Charges,"Rubicon Close 3 (P56, LPT)",WATER PLUS,0865005329/INV06033956,41.60
Department of Health,Leicestershire Partnership NHS Trust,19/04/22,Water & Sewerage Charges,"Rutland Memorial Hospital (P134, LPT)",WATER PLUS,0865005329/INV06033956,294.30
Department of Health,Leicestershire Partnership NHS Trust,19/04/22,Water & Sewerage Charges,"Shepshed Health Centre (P123, LPT)",WATER PLUS,0865005329/INV06033956,489.97
Department of Health,Leicestershire Partnership NHS Trust,19/04/22,Water & Sewerage Charges,"Springfield Road Health Centre (P92, LPT)",WATER PLUS,0865005329/INV06033956,423.99
Department of Health,Leicestershire Partnership NHS Trust,19/04/22,Water & Sewerage Charges,"Stewart House (P61, LPT)",WATER PLUS,0865005329/INV06033956,1392.86
Department of Health,Leicestershire Partnership NHS Trust,19/04/22,Water & Sewerage Charges,"Swithland House - London Road 352 (P44, LPT)",WATER PLUS,0865005329/INV06033956,248.62
Department of Health,Leicestershire Partnership NHS Trust,19/04/22,Water & Sewerage Charges,"The Agnes Unit (AKA Assessment and Treatment Centre) (P85, LPT)",WATER PLUS,0865005329/INV06033956,1412.65
Department of Health,Leicestershire Partnership NHS Trust,19/04/22,Water & Sewerage Charges,"The Cedars (P19, LPT)",WATER PLUS,0865005329/INV06033956,215.56
Department of Health,Leicestershire Partnership NHS Trust,19/04/22,Water & Sewerage Charges,"The Grange 1 (P4, LPT)",WATER PLUS,0865005329/INV06033956,168.05
Department of Health,Leicestershire Partnership NHS Trust,19/04/22,Water & Sewerage Charges,"The Grange 2 (P41, LPT)",WATER PLUS,0865005329/INV06033956,134.49
Department of Health,Leicestershire Partnership NHS Trust,19/04/22,Water & Sewerage Charges,"The Willows - Cordelia Close (P22, LPT)",WATER PLUS,0865005329/INV06033956,3141.87
Department of Health,Leicestershire Partnership NHS Trust,19/04/22,Water & Sewerage Charges,"Westcotes Group - Tanglewood Resource Centre (P77, LPT)",WATER PLUS,0865005329/INV06033956,334.80
Department of Health,Leicestershire Partnership NHS Trust,19/04/22,Water & Sewerage Charges,"Westcotes Group -Westcotes House (P78, LPT)",WATER PLUS,0865005329/INV06033956,1227.33
Department of Health,Leicestershire Partnership NHS Trust,21/04/22,Insurance Costs,Chief Executives Office,NHS LITIGATION AUTHORITY,SICX408225,192613.10
Department of Health,Leicestershire Partnership NHS Trust,21/04/22,Gas,"Beaumont Leys Health Centre (P94, LPT)",TOTAL GAS & POWER LTD,264615719/22,455.20
Department of Health,Leicestershire Partnership NHS Trust,21/04/22,Gas,"Bennion Centre (including Forest Grange Day Unit) (P8, LPT)",TOTAL GAS & POWER LTD,264615719/22,-1504.12
Department of Health,Leicestershire Partnership NHS Trust,21/04/22,Gas,"Bradgate Unit (including Glenvale day Unit) (P7, LPT)",TOTAL GAS & POWER LTD,264615719/22,14396.14
Department of Health,Leicestershire Partnership NHS Trust,21/04/22,Gas,Bridge Park Plaza - First Floor (LPT),TOTAL GAS & POWER LTD,264615719/22,1375.35
Department of Health,Leicestershire Partnership NHS Trust,21/04/22,Gas,"Bridge Park Road - Units 2 and 3 (P148, LPT)",TOTAL GAS & POWER LTD,264615719/22,306.04
Department of Health,Leicestershire Partnership NHS Trust,21/04/22,Gas,"Coalville Community Hospital (P138, LPT)",TOTAL GAS & POWER LTD,264615719/22,6884.92
Department of Health,Leicestershire Partnership NHS Trust,21/04/22,Gas,"Coalville Health Centre (P121, LPT)",TOTAL GAS & POWER LTD,264615719/22,613.56
Department of Health,Leicestershire Partnership NHS Trust,21/04/22,Gas,"Evington Centre (P6, LPT)",TOTAL GAS & POWER LTD,264615719/22,1375.01
Department of Health,Leicestershire Partnership NHS Trust,21/04/22,Gas,"Farm Lodge (P34, LPT)",TOTAL GAS & POWER LTD,264615719/22,-259.20
Department of Health,Leicestershire Partnership NHS Trust,21/04/22,Gas,"Feilding Palmer Hospital (Lutterworth) (P131, LPT)",TOTAL GAS & POWER LTD,264615719/22,1264.49
Department of Health,Leicestershire Partnership NHS Trust,21/04/22,Gas,"Frith Cottages 3 & 4 (P36, LPT)",TOTAL GAS & POWER LTD,264615719/22,118.32
Department of Health,Leicestershire Partnership NHS Trust,21/04/22,Gas,HIS,TOTAL GAS & POWER LTD,264615719/22,201.68
Department of Health,Leicestershire Partnership NHS Trust,21/04/22,Gas,"Hawthorne Centre - Coalville (P14, LPT)",TOTAL GAS & POWER LTD,264615719/22,440.21
Department of Health,Leicestershire Partnership NHS Trust,21/04/22,Gas,"Hinckley and Bosworth Community Hospital (Sunnyside) (P133, LPT)",TOTAL GAS & POWER LTD,264615719/22,4875.29
Department of Health,Leicestershire Partnership NHS Trust,21/04/22,Gas,"Hynca Lodge (P33, LPT)",TOTAL GAS & POWER LTD,264615719/22,404.16
Department of Health,Leicestershire Partnership NHS Trust,21/04/22,Gas,"LGH - Gwendolen House (P4, LPT)",TOTAL GAS & POWER LTD,264615719/22,1736.12
Department of Health,Leicestershire Partnership NHS Trust,21/04/22,Gas,"Loughborough Hospital (P136, LPT)",TOTAL GAS & POWER LTD,264615719/22,12408.11
Department of Health,Leicestershire Partnership NHS Trust,21/04/22,Gas,Mawson House (LPT),TOTAL GAS & POWER LTD,264615719/22,-147.23
Department of Health,Leicestershire Partnership NHS Trust,21/04/22,Gas,"Mett Centre (P49, LPT)",TOTAL GAS & POWER LTD,264615719/22,291.56
Department of Health,Leicestershire Partnership NHS Trust,21/04/22,Gas,"Narborough Health Centre (P117, LPT)",TOTAL GAS & POWER LTD,264615719/22,499.27
Department of Health,Leicestershire Partnership NHS Trust,21/04/22,Gas,"Neville Centre - LGH (was DSC) (P147, LPT)",TOTAL GAS & POWER LTD,264615719/22,895.34
Department of Health,Leicestershire Partnership NHS Trust,21/04/22,Gas,"OSL House (P54, LPT)",TOTAL GAS & POWER LTD,264615719/22,678.90
Department of Health,Leicestershire Partnership NHS Trust,21/04/22,Gas,"Orchard Resource Centre (P15, LPT)",TOTAL GAS & POWER LTD,264615719/22,569.74
Department of Health,Leicestershire Partnership NHS Trust,21/04/22,Gas,"Rutland Memorial Hospital (P134, LPT)",TOTAL GAS & POWER LTD,264615719/22,2682.40
Department of Health,Leicestershire Partnership NHS Trust,21/04/22,Gas,"Shepshed Health Centre (P123, LPT)",TOTAL GAS & POWER LTD,264615719/22,587.76
Department of Health,Leicestershire Partnership NHS Trust,21/04/22,Gas,"Springfield Road Health Centre (P92, LPT)",TOTAL GAS & POWER LTD,264615719/22,547.44
Department of Health,Leicestershire Partnership NHS Trust,21/04/22,Gas,"Stewart House (P61, LPT)",TOTAL GAS & POWER LTD,264615719/22,2593.86
Department of Health,Leicestershire Partnership NHS Trust,21/04/22,Gas,"Swithland House - London Road 352 (P44, LPT)",TOTAL GAS & POWER LTD,264615719/22,888.50
Department of Health,Leicestershire Partnership NHS Trust,21/04/22,Gas,"The Agnes Unit (AKA Assessment and Treatment Centre) (P85, LPT)",TOTAL GAS & POWER LTD,264615719/22,2675.84
Department of Health,Leicestershire Partnership NHS Trust,21/04/22,Gas,The Beacon,TOTAL GAS & POWER LTD,264615719/22,539.46
Department of Health,Leicestershire Partnership NHS Trust,21/04/22,Gas,"The Cedars (P19, LPT)",TOTAL GAS & POWER LTD,264615719/22,322.42
Department of Health,Leicestershire Partnership NHS Trust,21/04/22,Gas,"The Grange 1 (P4, LPT)",TOTAL GAS & POWER LTD,264615719/22,284.22
Department of Health,Leicestershire Partnership NHS Trust,21/04/22,Gas,"The Grange 2 (P41, LPT)",TOTAL GAS & POWER LTD,264615719/22,224.95
Department of Health,Leicestershire Partnership NHS Trust,21/04/22,Gas,"The Willows - Cordelia Close (P22, LPT)",TOTAL GAS & POWER LTD,264615719/22,2808.46
Department of Health,Leicestershire Partnership NHS Trust,21/04/22,Gas,"Valentine Centre (P3, LPT)",TOTAL GAS & POWER LTD,264615719/22,1725.64
Department of Health,Leicestershire Partnership NHS Trust,21/04/22,Gas,"Westcotes Group -Westcotes House (P78, LPT)",TOTAL GAS & POWER LTD,264615719/22,1031.22
Department of Health,Leicestershire Partnership NHS Trust,21/04/22,Gas,"Winstanley Drive Health Centre (P8, LPT)",TOTAL GAS & POWER LTD,264615719/22,475.51
Department of Health,Leicestershire Partnership NHS Trust,22/04/22,Landline Telephone Rental / Calls,"Beaumont Leys Health Centre (P94, LPT)",VIRGIN MEDIA BUSINESS,853083001/004/0422,331.69
Department of Health,Leicestershire Partnership NHS Trust,22/04/22,Landline Telephone Rental / Calls,"Bennion Centre (including Forest Grange Day Unit) (P8, LPT)",VIRGIN MEDIA BUSINESS,853083001/004/0422,7.74
Department of Health,Leicestershire Partnership NHS Trust,22/04/22,Landline Telephone Rental / Calls,"Bradgate Unit (including Glenvale day Unit) (P7, LPT)",VIRGIN MEDIA BUSINESS,853083001/004/0422,8118.72
Department of Health,Leicestershire Partnership NHS Trust,22/04/22,Landline Telephone Rental / Calls,Braunstone Health and Social Care Centre (Part) (PROPCO),VIRGIN MEDIA BUSINESS,853083001/004/0422,1113.80
Department of Health,Leicestershire Partnership NHS Trust,22/04/22,Landline Telephone Rental / Calls,Bridge Park Plaza - First Floor (LPT),VIRGIN MEDIA BUSINESS,853083001/004/0422,3698.75
Department of Health,Leicestershire Partnership NHS Trust,22/04/22,Landline Telephone Rental / Calls,"Coalville Community Hospital (P138, LPT)",VIRGIN MEDIA BUSINESS,853083001/004/0422,1403.64
Department of Health,Leicestershire Partnership NHS Trust,22/04/22,Landline Telephone Rental / Calls,"Coalville Health Centre (P121, LPT)",VIRGIN MEDIA BUSINESS,853083001/004/0422,143.83
Department of Health,Leicestershire Partnership NHS Trust,22/04/22,Landline Telephone Rental / Calls,County Hall,VIRGIN MEDIA BUSINESS,853083001/004/0422,2122.93
Department of Health,Leicestershire Partnership NHS Trust,22/04/22,Landline Telephone Rental / Calls,Estates & Facilities Central,VIRGIN MEDIA BUSINESS,853083001/004/0422,8.46
Department of Health,Leicestershire Partnership NHS Trust,22/04/22,Landline Telephone Rental / Calls,"Evington Centre (P6, LPT)",VIRGIN MEDIA BUSINESS,853083001/004/0422,1736.28
Department of Health,Leicestershire Partnership NHS Trust,22/04/22,Landline Telephone Rental / Calls,HIS,VIRGIN MEDIA BUSINESS,853083001/004/0422,2949.12
Department of Health,Leicestershire Partnership NHS Trust,22/04/22,Landline Telephone Rental / Calls,"Hawthorne Centre - Coalville (P14, LPT)",VIRGIN MEDIA BUSINESS,853083001/004/0422,491.48
Department of Health,Leicestershire Partnership NHS Trust,22/04/22,Landline Telephone Rental / Calls,"Hinckley and Bosworth Community Hospital (Sunnyside) (P133, LPT)",VIRGIN MEDIA BUSINESS,853083001/004/0422,975.41
Department of Health,Leicestershire Partnership NHS Trust,22/04/22,Landline Telephone Rental / Calls,Hood Park Leisure Centre Clinic,VIRGIN MEDIA BUSINESS,853083001/004/0422,23.22
Department of Health,Leicestershire Partnership NHS Trust,22/04/22,Landline Telephone Rental / Calls,"Hynca Lodge (P33, LPT)",VIRGIN MEDIA BUSINESS,853083001/004/0422,366.95
Department of Health,Leicestershire Partnership NHS Trust,22/04/22,Landline Telephone Rental / Calls,"Legion House, Ashby",VIRGIN MEDIA BUSINESS,853083001/004/0422,41.92
Department of Health,Leicestershire Partnership NHS Trust,22/04/22,Landline Telephone Rental / Calls,"Loughborough Hospital (P136, LPT)",VIRGIN MEDIA BUSINESS,853083001/004/0422,4576.20
Department of Health,Leicestershire Partnership NHS Trust,22/04/22,Landline Telephone Rental / Calls,Mawson House (LPT),VIRGIN MEDIA BUSINESS,853083001/004/0422,464.72
Department of Health,Leicestershire Partnership NHS Trust,22/04/22,Landline Telephone Rental / Calls,Merlyn Vaz Centre (CHP),VIRGIN MEDIA BUSINESS,853083001/004/0422,1275.91
Department of Health,Leicestershire Partnership NHS Trust,22/04/22,Landline Telephone Rental / Calls,"Mett Centre (P49, LPT)",VIRGIN MEDIA BUSINESS,853083001/004/0422,89.27
Department of Health,Leicestershire Partnership NHS Trust,22/04/22,Landline Telephone Rental / Calls,NSPCC Training Cente,VIRGIN MEDIA BUSINESS,853083001/004/0422,159.96
Department of Health,Leicestershire Partnership NHS Trust,22/04/22,Landline Telephone Rental / Calls,New Parks Health Centre (PROPCO),VIRGIN MEDIA BUSINESS,853083001/004/0422,1487.51
Department of Health,Leicestershire Partnership NHS Trust,22/04/22,Landline Telephone Rental / Calls,"OSL House (P54, LPT)",VIRGIN MEDIA BUSINESS,853083001/004/0422,964.40
Department of Health,Leicestershire Partnership NHS Trust,22/04/22,Landline Telephone Rental / Calls,"Orchard Resource Centre (P15, LPT)",VIRGIN MEDIA BUSINESS,853083001/004/0422,609.72
Department of Health,Leicestershire Partnership NHS Trust,22/04/22,Landline Telephone Rental / Calls,Pasley Road Health Centre (PROPCO),VIRGIN MEDIA BUSINESS,853083001/004/0422,117.49
Department of Health,Leicestershire Partnership NHS Trust,22/04/22,Landline Telephone Rental / Calls,"Prince Philip House (P96, LPT)",VIRGIN MEDIA BUSINESS,853083001/004/0422,1537.07
Department of Health,Leicestershire Partnership NHS Trust,22/04/22,Landline Telephone Rental / Calls,Rushey Mead Health Centre (PROPCO),VIRGIN MEDIA BUSINESS,853083001/004/0422,71.72
Department of Health,Leicestershire Partnership NHS Trust,22/04/22,Landline Telephone Rental / Calls,"Shepshed Health Centre (P123, LPT)",VIRGIN MEDIA BUSINESS,853083001/004/0422,9.40
Department of Health,Leicestershire Partnership NHS Trust,22/04/22,Landline Telephone Rental / Calls,"Springfield Road Health Centre (P92, LPT)",VIRGIN MEDIA BUSINESS,853083001/004/0422,326.06
Department of Health,Leicestershire Partnership NHS Trust,22/04/22,Landline Telephone Rental / Calls,"St Peters Health Center (Part 1st and 2nd floors) (P66, LPT)",VIRGIN MEDIA BUSINESS,853083001/004/0422,1832.62
Department of Health,Leicestershire Partnership NHS Trust,22/04/22,Landline Telephone Rental / Calls,"Swithland House - London Road 352 (P44, LPT)",VIRGIN MEDIA BUSINESS,853083001/004/0422,248.71
Department of Health,Leicestershire Partnership NHS Trust,22/04/22,Landline Telephone Rental / Calls,"The Cedars (P19, LPT)",VIRGIN MEDIA BUSINESS,853083001/004/0422,718.48
Department of Health,Leicestershire Partnership NHS Trust,22/04/22,Landline Telephone Rental / Calls,"The Willows - Cordelia Close (P22, LPT)",VIRGIN MEDIA BUSINESS,853083001/004/0422,499.61
Department of Health,Leicestershire Partnership NHS Trust,22/04/22,Landline Telephone Rental / Calls,"Valentine Centre (P3, LPT)",VIRGIN MEDIA BUSINESS,853083001/004/0422,1826.83
Department of Health,Leicestershire Partnership NHS Trust,22/04/22,Landline Telephone Rental / Calls,Warren Park Way 25 (PROPCO),VIRGIN MEDIA BUSINESS,853083001/004/0422,770.16
Department of Health,Leicestershire Partnership NHS Trust,22/04/22,Landline Telephone Rental / Calls,"Westcotes Group -Westcotes House (P78, LPT)",VIRGIN MEDIA BUSINESS,853083001/004/0422,1410.11
Department of Health,Leicestershire Partnership NHS Trust,22/04/22,Landline Telephone Rental / Calls,"Winstanley Drive Health Centre (P8, LPT)",VIRGIN MEDIA BUSINESS,853083001/004/0422,431.68
Department of Health,Leicestershire Partnership NHS Trust,22/04/22,Computer Hardware,HIS Infrastructure,DELL COMPUTERS,7402789643,28558.44
Department of Health,Leicestershire Partnership NHS Trust,25/04/22,Nurse - Band 6 -Agency,AMH - Central Access Point,HCL NURSING,HNSI0001011,841.52
Department of Health,Leicestershire Partnership NHS Trust,25/04/22,Nurse - Band 6 -Agency,Adult City East CMHT - Merlyn Vaz,HCL NURSING,HNSI0001011,1075.15
Department of Health,Leicestershire Partnership NHS Trust,25/04/22,Nurse - Band 6 -Agency,Adult County West Leicestershire CMHT,HCL NURSING,HNSI0001011,1079.94
Department of Health,Leicestershire Partnership NHS Trust,25/04/22,NURSE - BAND 2 - AGENCY,Agnes Unit Management,HCL NURSING,HNSI0001011,22672.24
Department of Health,Leicestershire Partnership NHS Trust,25/04/22,NURSE - BAND 5 - AGENCY,Agnes Unit Management,HCL NURSING,HNSI0001011,16647.43
Department of Health,Leicestershire Partnership NHS Trust,25/04/22,NURSE - BAND 5 - AGENCY,Ashby Ward (Bradgate Unit),HCL NURSING,HNSI0001011,2303.95
Department of Health,Leicestershire Partnership NHS Trust,25/04/22,NURSE - BAND 2 - AGENCY,Aston Ward (Bradgate Unit),HCL NURSING,HNSI0001011,12647.16
Department of Health,Leicestershire Partnership NHS Trust,25/04/22,NURSE - BAND 5 - AGENCY,Aston Ward (Bradgate Unit),HCL NURSING,HNSI0001011,11709.90
Department of Health,Leicestershire Partnership NHS Trust,25/04/22,NURSE - BAND 2 - AGENCY,Beaumont Ward - Bradgate Unit,HCL NURSING,HNSI0001011,6335.84
Department of Health,Leicestershire Partnership NHS Trust,25/04/22,NURSE - BAND 5 - AGENCY,Beaumont Ward - Bradgate Unit,HCL NURSING,HNSI0001011,13888.69
Department of Health,Leicestershire Partnership NHS Trust,25/04/22,NURSE - BAND 2 - AGENCY,Belvoir Psychiatric Intensive Care Unit,HCL NURSING,HNSI0001011,1908.74
Department of Health,Leicestershire Partnership NHS Trust,25/04/22,NURSE - BAND 5 - AGENCY,Belvoir Psychiatric Intensive Care Unit,HCL NURSING,HNSI0001011,4319.83
Department of Health,Leicestershire Partnership NHS Trust,25/04/22,NURSE - BAND 2 - AGENCY,Bosworth Ward - Bradgate Unit,HCL NURSING,HNSI0001011,1096.13
Department of Health,Leicestershire Partnership NHS Trust,25/04/22,NURSE - BAND 5 - AGENCY,Bosworth Ward - Bradgate Unit,HCL NURSING,HNSI0001011,1511.63
Department of Health,Leicestershire Partnership NHS Trust,25/04/22,NURSE - BAND 2 - AGENCY,Cedar (Willows),HCL NURSING,HNSI0001011,1295.03
Department of Health,Leicestershire Partnership NHS Trust,25/04/22,NURSE - BAND 5 - AGENCY,Cedar (Willows),HCL NURSING,HNSI0001011,2702.15
Department of Health,Leicestershire Partnership NHS Trust,25/04/22,NURSE - BAND 2 - AGENCY,Coleman Ward,HCL NURSING,HNSI0001011,7768.06
Department of Health,Leicestershire Partnership NHS Trust,25/04/22,NURSE - BAND 5 - AGENCY,Coleman Ward,HCL NURSING,HNSI0001011,1282.80
Department of Health,Leicestershire Partnership NHS Trust,25/04/22,NURSE - BAND 5 - AGENCY,Crisis Resolution,HCL NURSING,HNSI0001011,2109.65
Department of Health,Leicestershire Partnership NHS Trust,25/04/22,NURSE - BAND 2 - AGENCY,Griffin Ward (HPC),HCL NURSING,HNSI0001011,8701.10
Department of Health,Leicestershire Partnership NHS Trust,25/04/22,NURSE - BAND 5 - AGENCY,Griffin Ward (HPC),HCL NURSING,HNSI0001011,973.84
Department of Health,Leicestershire Partnership NHS Trust,25/04/22,NURSE - BAND 2 - AGENCY,Heather Ward,HCL NURSING,HNSI0001011,4622.53
Department of Health,Leicestershire Partnership NHS Trust,25/04/22,NURSE - BAND 5 - AGENCY,Heather Ward,HCL NURSING,HNSI0001011,13561.84
Department of Health,Leicestershire Partnership NHS Trust,25/04/22,NURSE - BAND 2 - AGENCY,Kirby Ward,HCL NURSING,HNSI0001011,3864.62
Department of Health,Leicestershire Partnership NHS Trust,25/04/22,NURSE - BAND 5 - AGENCY,Kirby Ward,HCL NURSING,HNSI0001011,4563.87
Department of Health,Leicestershire Partnership NHS Trust,25/04/22,NURSE - BAND 2 - AGENCY,Maple Ward,HCL NURSING,HNSI0001011,1023.18
Department of Health,Leicestershire Partnership NHS Trust,25/04/22,NURSE - BAND 5 - AGENCY,Maple Ward,HCL NURSING,HNSI0001011,2383.51
Department of Health,Leicestershire Partnership NHS Trust,25/04/22,Nurse - Band 6 -Agency,Mental Health Liaison Team,HCL NURSING,HNSI0001011,1269.71
Department of Health,Leicestershire Partnership NHS Trust,25/04/22,NURSE - BAND 2 - AGENCY,Mill Lodge,HCL NURSING,HNSI0001011,4709.92
Department of Health,Leicestershire Partnership NHS Trust,25/04/22,NURSE - BAND 5 - AGENCY,Mill Lodge,HCL NURSING,HNSI0001011,13628.55
Department of Health,Leicestershire Partnership NHS Trust,25/04/22,NURSE - BAND 2 - AGENCY,Phoenix Ward (HPC),HCL NURSING,HNSI0001011,3297.55
Department of Health,Leicestershire Partnership NHS Trust,25/04/22,NURSE - BAND 5 - AGENCY,Phoenix Ward (HPC),HCL NURSING,HNSI0001011,4187.34
Department of Health,Leicestershire Partnership NHS Trust,25/04/22,NURSE - BAND 5 - AGENCY,Place Of Safety Assessment Unit,HCL NURSING,HNSI0001011,5457.69
Department of Health,Leicestershire Partnership NHS Trust,25/04/22,NURSE - BAND 2 - AGENCY,Stewart House,HCL NURSING,HNSI0001011,2516.30
Department of Health,Leicestershire Partnership NHS Trust,25/04/22,NURSE - BAND 5 - AGENCY,Stewart House,HCL NURSING,HNSI0001011,2835.20
Department of Health,Leicestershire Partnership NHS Trust,25/04/22,NURSE - BAND 2 - AGENCY,Sycamore (Willows),HCL NURSING,HNSI0001011,4784.38
Department of Health,Leicestershire Partnership NHS Trust,25/04/22,NURSE - BAND 5 - AGENCY,Sycamore (Willows),HCL NURSING,HNSI0001011,5713.71
Department of Health,Leicestershire Partnership NHS Trust,25/04/22,NURSE - BAND 2 - AGENCY,Thornton Ward - Bradgate Unit,HCL NURSING,HNSI0001011,1955.32
Department of Health,Leicestershire Partnership NHS Trust,25/04/22,NURSE - BAND 2 - AGENCY,Watermead Ward (Bradgate Unit),HCL NURSING,HNSI0001011,3689.82
Department of Health,Leicestershire Partnership NHS Trust,25/04/22,NURSE - BAND 5 - AGENCY,Watermead Ward (Bradgate Unit),HCL NURSING,HNSI0001011,6038.90
Department of Health,Leicestershire Partnership NHS Trust,25/04/22,NURSE - BAND 2 - AGENCY,Welford Ward,HCL NURSING,HNSI0001011,6797.43
Department of Health,Leicestershire Partnership NHS Trust,25/04/22,NURSE - BAND 5 - AGENCY,Welford Ward,HCL NURSING,HNSI0001011,1506.22
Department of Health,Leicestershire Partnership NHS Trust,25/04/22,NURSE - BAND 2 - AGENCY,CAMHS ED Team,HCL NURSING,HNSI0001013,2407.27
Department of Health,Leicestershire Partnership NHS Trust,25/04/22,NURSE - BAND 2 - AGENCY,CAMHS Inpatient Service,HCL NURSING,HNSI0001013,20295.03
Department of Health,Leicestershire Partnership NHS Trust,25/04/22,NURSE - BAND 5 - AGENCY,CAMHS Inpatient Service,HCL NURSING,HNSI0001013,6660.92
Department of Health,Leicestershire Partnership NHS Trust,25/04/22,Nurse - Band 6 -Agency,CAMHS Waiting List Monies,HCL NURSING,HNSI0001013,4079.84
Department of Health,Leicestershire Partnership NHS Trust,25/04/22,NURSE - BAND 2 - AGENCY,Langley Ward ED Inpatient Service,HCL NURSING,HNSI0001013,5270.13
Department of Health,Leicestershire Partnership NHS Trust,25/04/22,NURSE - BAND 5 - AGENCY,Langley Ward ED Inpatient Service,HCL NURSING,HNSI0001013,2601.84
Department of Health,Leicestershire Partnership NHS Trust,25/04/22,Nurse - Band 6 -Agency,CAMHS HUB / CAP,HCL SOCIAL CARE,HWSI0001127,8522.40
Department of Health,Leicestershire Partnership NHS Trust,25/04/22,Nurse - Band 6 -Agency,CAMHS Waiting List Monies,HCL SOCIAL CARE,HWSI0001127,25809.55
Department of Health,Leicestershire Partnership NHS Trust,25/04/22,Nurse - Band 6 -Agency,Crisis Response and Home Treatment,HCL SOCIAL CARE,HWSI0001127,2110.05
Department of Health,Leicestershire Partnership NHS Trust,26/04/22,Rent,"Syston Health Centre (New Building) (P127, LPT)",PHIP (5) LIMITED,LINV532901,37500.00
Department of Health,Leicestershire Partnership NHS Trust,26/04/22,NURSE - BAND 2 - AGENCY,Beechwood Ward,HCL NURSING,HNSI0001012,5646.39
Department of Health,Leicestershire Partnership NHS Trust,26/04/22,NURSE - BAND 5 - AGENCY,Beechwood Ward,HCL NURSING,HNSI0001012,7438.67
Department of Health,Leicestershire Partnership NHS Trust,26/04/22,NURSE - BAND 5 - AGENCY,City Planned Care - East,HCL NURSING,HNSI0001012,11547.01
Department of Health,Leicestershire Partnership NHS Trust,26/04/22,NURSE - BAND 5 - AGENCY,City Planned Care - West,HCL NURSING,HNSI0001012,12341.69
Department of Health,Leicestershire Partnership NHS Trust,26/04/22,NURSE - BAND 2 - AGENCY,Clarendon Ward,HCL NURSING,HNSI0001012,4087.50
Department of Health,Leicestershire Partnership NHS Trust,26/04/22,NURSE - BAND 5 - AGENCY,Clarendon Ward,HCL NURSING,HNSI0001012,10274.64
Department of Health,Leicestershire Partnership NHS Trust,26/04/22,NURSE - BAND 2 - AGENCY,Coalville Snibston Ward,HCL NURSING,HNSI0001012,6824.86
Department of Health,Leicestershire Partnership NHS Trust,26/04/22,NURSE - BAND 5 - AGENCY,Coalville Snibston Ward,HCL NURSING,HNSI0001012,2590.35
Department of Health,Leicestershire Partnership NHS Trust,26/04/22,NURSE - BAND 2 - AGENCY,Coalville Ward 2,HCL NURSING,HNSI0001012,708.61
Department of Health,Leicestershire Partnership NHS Trust,26/04/22,NURSE - BAND 5 - AGENCY,Coalville Ward 2,HCL NURSING,HNSI0001012,2324.64
Department of Health,Leicestershire Partnership NHS Trust,26/04/22,NURSE - BAND 2 - AGENCY,Dalgliesh Ward,HCL NURSING,HNSI0001012,1218.79
Department of Health,Leicestershire Partnership NHS Trust,26/04/22,NURSE - BAND 5 - AGENCY,Dalgliesh Ward,HCL NURSING,HNSI0001012,2961.10
Department of Health,Leicestershire Partnership NHS Trust,26/04/22,NURSE - BAND 5 - AGENCY,"East Planned Care - Oadby,Wigston & Harborough",HCL NURSING,HNSI0001012,903.12
Department of Health,Leicestershire Partnership NHS Trust,26/04/22,NURSE - BAND 2 - AGENCY,H&B Comm Hosp East Ward,HCL NURSING,HNSI0001012,6292.97
Department of Health,Leicestershire Partnership NHS Trust,26/04/22,NURSE - BAND 5 - AGENCY,H&B Comm Hosp East Ward,HCL NURSING,HNSI0001012,8906.97
Department of Health,Leicestershire Partnership NHS Trust,26/04/22,NURSE - BAND 2 - AGENCY,H&B Comm Hosp North Ward,HCL NURSING,HNSI0001012,9231.23
Department of Health,Leicestershire Partnership NHS Trust,26/04/22,NURSE - BAND 5 - AGENCY,H&B Comm Hosp North Ward,HCL NURSING,HNSI0001012,5304.46
Department of Health,Leicestershire Partnership NHS Trust,26/04/22,NURSE - BAND 2 - AGENCY,Lough Swithland Ward,HCL NURSING,HNSI0001012,1693.92
Department of Health,Leicestershire Partnership NHS Trust,26/04/22,NURSE - BAND 5 - AGENCY,Lough Swithland Ward,HCL NURSING,HNSI0001012,1194.95
Department of Health,Leicestershire Partnership NHS Trust,26/04/22,NURSE - BAND 2 - AGENCY,Non Recurrent 2012/13,HCL NURSING,HNSI0001012,1254.65
Department of Health,Leicestershire Partnership NHS Trust,26/04/22,NURSE - BAND 5 - AGENCY,Non Recurrent 2012/13,HCL NURSING,HNSI0001012,6427.39
Department of Health,Leicestershire Partnership NHS Trust,26/04/22,NURSE - BAND 2 - AGENCY,Rutland Ward Nursing,HCL NURSING,HNSI0001012,2398.85
Department of Health,Leicestershire Partnership NHS Trust,26/04/22,NURSE - BAND 5 - AGENCY,Rutland Ward Nursing,HCL NURSING,HNSI0001012,397.06
Department of Health,Leicestershire Partnership NHS Trust,26/04/22,NURSE - BAND 2 - AGENCY,St Lukes Stroke Ward,HCL NURSING,HNSI0001012,2662.21
Department of Health,Leicestershire Partnership NHS Trust,26/04/22,NURSE - BAND 5 - AGENCY,St Lukes Stroke Ward,HCL NURSING,HNSI0001012,1917.49
Department of Health,Leicestershire Partnership NHS Trust,26/04/22,NURSE - BAND 2 - AGENCY,St Lukes Ward 3,HCL NURSING,HNSI0001012,2364.51
Department of Health,Leicestershire Partnership NHS Trust,26/04/22,NURSE - BAND 5 - AGENCY,St Lukes Ward 3,HCL NURSING,HNSI0001012,4129.78
Department of Health,Leicestershire Partnership NHS Trust,26/04/22,NURSE - BAND 2 - AGENCY,Wakerley Ward,HCL NURSING,HNSI0001012,11405.67
Department of Health,Leicestershire Partnership NHS Trust,26/04/22,NURSE - BAND 5 - AGENCY,Wakerley Ward,HCL NURSING,HNSI0001012,3593.39
Department of Health,Leicestershire Partnership NHS Trust,28/04/22,External Consultancy Fees,HIS Programme & Change,SYNTAX CONSULTANCY LTD,2110901,42000.00
Department of Health,Leicestershire Partnership NHS Trust,28/04/22,Healthcare Services / Recharges from Non-NHS Bodies,Adult Eating Disorder Collaborative,PRIORY GROUP,301MAR22LECAED,35541.82
Department of Health,Leicestershire Partnership NHS Trust,28/04/22,NURSE - BAND 2 - AGENCY,CAMHS Inpatient Service,Prometheus complex care ltd,0000000609,54508.40
Department of Health,Leicestershire Partnership NHS Trust,29/04/22,NURSE - BAND 2 - AGENCY,CAMHS ED Team,HCL NURSING,HNSI0001020,2550.37
Department of Health,Leicestershire Partnership NHS Trust,29/04/22,NURSE - BAND 2 - AGENCY,CAMHS Inpatient Service,HCL NURSING,HNSI0001020,18260.65
Department of Health,Leicestershire Partnership NHS Trust,29/04/22,NURSE - BAND 5 - AGENCY,CAMHS Inpatient Service,HCL NURSING,HNSI0001020,8942.16
Department of Health,Leicestershire Partnership NHS Trust,29/04/22,Nurse - Band 6 -Agency,CAMHS Waiting List Monies,HCL NURSING,HNSI0001020,7643.68
Department of Health,Leicestershire Partnership NHS Trust,29/04/22,NURSE - BAND 2 - AGENCY,Langley Ward ED Inpatient Service,HCL NURSING,HNSI0001020,2789.07
Department of Health,Leicestershire Partnership NHS Trust,29/04/22,NURSE - BAND 5 - AGENCY,Langley Ward ED Inpatient Service,HCL NURSING,HNSI0001020,4770.43
Department of Health,Leicestershire Partnership NHS Trust,29/04/22,Nurse - Band 6 -Agency,CAMHS HUB / CAP,HCL SOCIAL CARE,HWSI0001146,8569.51
Department of Health,Leicestershire Partnership NHS Trust,29/04/22,Nurse - Band 6 -Agency,CAMHS Waiting List Monies,HCL SOCIAL CARE,HWSI0001146,24408.93
Department of Health,Leicestershire Partnership NHS Trust,29/04/22,Nurse - Band 6 -Agency,Crisis Response and Home Treatment,HCL SOCIAL CARE,HWSI0001146,2132.42
